bitfinex/quotes_BTCUSD_20250802
["timestamp","ask_amount","ask_price","bid_price","bid_amount"]
[1754133044097,6.57124249,113780.0,113770.0,0.03258]
[1754133044303,6.75843888,113780.0,113770.0,0.03258]
[1754133044723,1.75843888,113780.0,113770.0,0.03258]
[1754133045146,6.75961888,113780.0,113770.0,0.03558]
[1754133045373,6.78461888,113780.0,113770.0,0.003]
[1754133046045,5.60079326,113770.0,113760.0,0.03059]
[1754133046269,6.23211113,113770.0,113760.0,0.03258]
[1754133046666,6.41236834,113770.0,113760.0,0.03258]
[1754133047300,6.16008012,113770.0,113760.0,0.03262797]
[1754133047526,6.4198319,113770.0,113760.0,0.03262797]
[1754133047737,6.43359487,113770.0,113760.0,0.03262797]
[1754133048401,6.43577487,113770.0,113760.0,0.03262797]
[1754133048619,7.57342559,113770.0,113760.0,0.03262797]
[1754133048829,7.57342559,113770.0,113760.0,0.03063797]
[1754133049008,7.57442559,113770.0,113760.0,0.03063797]
[1754133049227,2.57442559,113770.0,113760.0,0.03063797]
[1754133049431,7.57442559,113770.0,113760.0,0.03063797]
[1754133050147,7.29569437,113770.0,113760.0,0.03063797]
[1754133051293,2.29569437,113770.0,113760.0,0.03063797]
[1754133051498,7.29569437,113770.0,113760.0,0.03063797]
[1754133051842,7.01696315,113770.0,113760.0,0.03063797]
[1754133052055,7.29569437,113770.0,113760.0,0.03063797]
[1754133052494,7.27677487,113770.0,113760.0,0.03063797]
[1754133052695,7.27674459,113770.0,113760.0,0.03063797]
[1754133052921,7.27674459,113770.0,113760.0,0.03262797]
[1754133054823,7.28133965,113770.0,113760.0,0.03262797]
[1754133055447,7.30023939,113770.0,113760.0,0.03262797]
[1754133055784,7.30019481,113770.0,113760.0,0.03262797]
[1754133057232,2.30019481,113770.0,113760.0,0.03262797]
[1754133057497,7.30019481,113770.0,113760.0,0.03262797]
[1754133058527,2.30019481,113770.0,113760.0,0.03262797]
[1754133058738,7.30019481,113770.0,113760.0,0.03262797]
[1754133060242,7.02146359,113770.0,113760.0,0.03262797]
[1754133060460,7.30019481,113770.0,113760.0,0.03262797]
[1754133060670,7.29901481,113770.0,113760.0,0.03262797]
[1754133062569,2.29901481,113770.0,113760.0,0.03262797]
[1754133062794,7.29901481,113770.0,113760.0,0.03262797]
[1754133063410,7.30751481,113770.0,113760.0,0.03262797]
[1754133063847,7.02878359,113770.0,113760.0,0.03262797]
[1754133064065,7.30751481,113770.0,113760.0,0.03262797]
[1754133064264,7.29901481,113770.0,113760.0,0.03262797]
[1754133064673,2.29901481,113770.0,113760.0,0.03262797]
[1754133064900,7.29903846,113770.0,113760.0,0.03262797]
[1754133065958,7.2944434,113770.0,113760.0,0.03262797]
[1754133066170,7.29903846,113770.0,113760.0,0.03262797]
[1754133066377,7.29903846,113770.0,113760.0,0.02755797]
[1754133066378,7.30021846,113770.0,113760.0,0.02755797]
[1754133066615,7.29903846,113770.0,113760.0,0.03273797]
[1754133066997,7.30021846,113770.0,113760.0,0.03273797]
[1754133069183,7.30871846,113770.0,113760.0,0.03273797]
[1754133069435,7.3323727,113770.0,113760.0,0.03273797]
[1754133070070,7.4250527,113770.0,113760.0,0.03273797]
[1754133070439,7.3323727,113770.0,113760.0,0.03273797]
[1754133070643,2.3323727,113770.0,113760.0,0.03273797]
[1754133070851,7.3323727,113770.0,113760.0,0.03273797]
[1754133071445,7.3852327,113770.0,113760.0,0.03273797]
[1754133072457,7.38520321,113770.0,113760.0,0.03273797]
[1754133075095,2.38520321,113770.0,113760.0,0.03273797]
[1754133075461,7.38520321,113770.0,113760.0,0.03273797]
[1754133076850,7.10647199,113770.0,113760.0,0.03273797]
[1754133077065,7.38520321,113770.0,113760.0,0.03273797]
[1754133078115,2.38520321,113770.0,113760.0,0.03273797]
[1754133078340,7.38520321,113770.0,113760.0,0.03068797]
[1754133079209,2.38520321,113770.0,113760.0,0.03068797]
[1754133079384,7.38520321,113770.0,113760.0,0.03068797]
[1754133081157,7.37699993,113770.0,113760.0,0.03068797]
[1754133081370,7.38526418,113770.0,113760.0,0.03068797]
[1754133088949,7.37676418,113770.0,113760.0,0.03068797]
[1754133092121,7.37689011,113770.0,113760.0,0.03068797]
[1754133092341,7.36042366,113770.0,113760.0,0.03068797]
[1754133092587,7.37689888,113770.0,113760.0,0.03068797]
[1754133093487,2.37689888,113770.0,113760.0,0.03068797]
[1754133093846,7.37689888,113770.0,113760.0,0.03068797]
[1754133094062,7.38539888,113770.0,113760.0,0.03068797]
[1754133096247,7.3853981,113770.0,113760.0,0.03068797]
[1754133097167,7.3853981,113770.0,113760.0,0.02755797]
[1754133098919,7.38539828,113770.0,113760.0,0.02755797]
[1754133099409,7.59687828,113770.0,113760.0,0.02755797]
[1754133101024,2.59687828,113770.0,113760.0,0.02755797]
[1754133101245,7.59687828,113770.0,113760.0,0.02755797]
[1754133102467,7.58837828,113770.0,113760.0,0.02755797]
[1754133103105,7.36465398,113770.0,113760.0,0.02755797]
[1754133103864,7.08592276,113770.0,113760.0,0.02755797]
[1754133104100,7.36465398,113770.0,113760.0,0.02755797]
[1754133104333,7.08592276,113770.0,113760.0,0.02755797]
[1754133104565,7.36465398,113770.0,113760.0,0.03048797]
[1754133104799,7.36465048,113770.0,113760.0,0.03048797]
[1754133107484,7.37315048,113770.0,113760.0,0.03048797]
[1754133107704,7.37315058,113770.0,113760.0,0.03048797]
[1754133108624,2.37315058,113770.0,113760.0,0.03048797]
[1754133109181,7.37315058,113770.0,113760.0,0.03048797]
[1754133110404,7.37315058,113770.0,113760.0,0.02755797]
[1754133111460,7.67547618,113770.0,113760.0,4.797e-05]
[1754133111883,7.67379618,113770.0,113760.0,4.797e-05]
[1754133112580,5.32580872,113760.0,113750.0,0.02773]
[1754133112796,6.23703902,113760.0,113750.0,0.02773]
[1754133113010,6.37863584,113760.0,113750.0,0.02773]
[1754133113280,0.54,113730.0,113720.0,0.0004]
[1754133113480,5.94878995,113730.0,113720.0,0.28127122]
[1754133113692,6.08470633,113730.0,113720.0,0.28127122]
[1754133113922,6.14770241,113730.0,113720.0,0.28420122]
[1754133114349,6.11115333,113730.0,113720.0,0.28420122]
[1754133114624,6.61115333,113730.0,113720.0,0.2846804]
[1754133115371,6.61115333,113730.0,113720.0,0.3105204]
[1754133115600,6.61115333,113730.0,113720.0,0.03278918]
[1754133115858,6.61115333,113730.0,113720.0,0.3115204]
[1754133116304,6.61115333,113730.0,113720.0,0.03178918]
[1754133116519,6.67618367,113730.0,113720.0,0.3105204]
[1754133116662,6.68994982,113730.0,113720.0,0.3135204]
[1754133116866,6.62491022,113730.0,113720.0,0.3105204]
[1754133117339,6.62491022,113730.0,113720.0,0.3125204]
[1754133117636,6.65085308,113730.0,113720.0,0.3135204]
[1754133119495,1.65085123,113730.0,113720.0,0.3135204]
[1754133119700,6.65085123,113730.0,113720.0,0.3135204]
[1754133123569,6.65085123,113730.0,113720.0,0.31186165]
[1754133124201,6.69517137,113730.0,113720.0,0.31186165]
[1754133124613,6.65085123,113730.0,113720.0,0.31186165]
[1754133125524,6.92958245,113730.0,113720.0,0.03313043]
[1754133125755,6.93226317,113730.0,113720.0,0.03313043]
[1754133126317,6.95169219,113730.0,113720.0,0.03313043]
[1754133128018,7.39809219,113730.0,113720.0,0.03313043]
[1754133128226,7.48229208,113730.0,113720.0,0.03313043]
[1754133128651,7.49605911,113730.0,113720.0,0.03313043]
[1754133129283,7.49605911,113730.0,113720.0,0.02931918]
[1754133129905,7.21732789,113730.0,113720.0,0.02931918]
[1754133130147,7.49605911,113730.0,113720.0,0.02931918]
[1754133130357,7.49604956,113730.0,113720.0,0.02931918]
[1754133131198,7.49604956,113730.0,113720.0,0.03238918]
[1754133131424,7.49604956,113730.0,113720.0,0.02931918]
[1754133132729,7.48228253,113730.0,113720.0,0.02931918]
[1754133132949,2.49479253,113730.0,113720.0,0.00347918]
[1754133133163,7.49477384,113730.0,113720.0,0.00347918]
[1754133133651,7.51370099,113730.0,113720.0,0.00347918]
[1754133134091,7.51370099,113730.0,113720.0,0.00147918]
[1754133134334,7.51370099,113730.0,113720.0,0.00047918]
[1754133135734,7.52746904,113730.0,113720.0,0.00047918]
[1754133136350,7.24873782,113730.0,113720.0,0.00047918]
[1754133136552,7.52746904,113730.0,113720.0,0.00047918]
[1754133136751,7.08106904,113730.0,113720.0,0.00047918]
[1754133140945,7.35980026,113730.0,113720.0,0.00047918]
[1754133141154,7.3643991,113730.0,113720.0,0.00047918]
[1754133141356,6.85979666,113730.0,113720.0,0.00047918]
[1754133141602,7.08566788,113730.0,113720.0,0.00047918]
[1754133142211,7.08666788,113730.0,113720.0,0.00047918]
[1754133143146,0.73331957,113720.0,113710.0,0.0004]
[1754133143387,6.06576083,113720.0,113710.0,0.0004]
[1754133143566,6.34449205,113720.0,113710.0,0.02624]
[1754133143825,6.37094405,113720.0,113710.0,0.02624]
[1754133144810,6.37091726,113720.0,113710.0,0.02624]
[1754133145226,6.87091726,113720.0,113710.0,0.02624]
[1754133146690,6.88468658,113720.0,113710.0,0.02624]
[1754133147113,6.60595536,113720.0,113710.0,0.02624]
[1754133147329,6.88468658,113720.0,113710.0,0.02624]
[1754133147543,6.68468658,113720.0,113710.0,0.02624]
[1754133147752,6.6846863,113720.0,113710.0,0.02624]
[1754133148570,7.1310863,113720.0,113710.0,0.02624]
[1754133149222,6.85235508,113720.0,113710.0,0.03146]
[1754133149364,7.1310863,113720.0,113710.0,0.03146]
[1754133151257,7.11363728,113720.0,113710.0,0.03146]
[1754133152850,7.1136397,113720.0,113710.0,0.03146]
[1754133155333,2.1136397,113720.0,113710.0,0.03146]
[1754133155546,7.1136397,113720.0,113710.0,0.03146]
[1754133155977,7.1136397,113720.0,113710.0,0.02624]
[1754133156129,7.1136397,113720.0,113710.0,0.02935]
[1754133156538,7.1136397,113720.0,113710.0,0.03146]
[1754133156884,7.11365675,113720.0,113710.0,0.03146]
[1754133157211,6.83492553,113720.0,113710.0,0.03146]
[1754133157621,7.11365675,113720.0,113710.0,0.03146]
[1754133158296,7.09675206,113720.0,113710.0,0.03146]
[1754133158471,7.29675206,113720.0,113710.0,0.03146]
[1754133158905,7.31420108,113720.0,113710.0,0.03146]
[1754133159319,7.31420108,113720.0,113710.0,0.02624]
[1754133160410,7.5929323,113720.0,113710.0,0.02624]
[1754133162502,7.59294701,113720.0,113710.0,0.02624]
[1754133163094,2.59294701,113720.0,113710.0,0.02624]
[1754133163294,7.59294701,113720.0,113710.0,0.02624]
[1754133165482,7.59295028,113720.0,113710.0,0.02624]
[1754133166380,7.14655028,113720.0,113710.0,0.02624]
[1754133166576,2.14655028,113720.0,113710.0,0.02624]
[1754133166783,7.14655028,113720.0,113710.0,0.02624]
[1754133167644,6.58908784,113720.0,113710.0,0.02624]
[1754133167854,7.14655028,113720.0,113710.0,0.02624]
[1754133168483,7.14656241,113720.0,113710.0,0.02624]
[1754133171253,7.14656241,113720.0,113710.0,0.02835]
[1754133171493,7.14656241,113720.0,113710.0,0.03146]
[1754133171903,7.14656241,113720.0,113710.0,0.02624]
[1754133172593,7.14656241,113720.0,113710.0,0.03146]
[1754133173456,7.14656241,113720.0,113710.0,0.02624]
[1754133173853,2.14656241,113720.0,113710.0,0.02624]
[1754133174062,7.29656241,113720.0,113710.0,0.02624]
[1754133174315,2.28012387,113720.0,113710.0,0.02624]
[1754133174541,7.29658619,113720.0,113710.0,0.02624]
[1754133175878,6.73912375,113720.0,113710.0,0.02939]
[1754133176108,7.29658619,113720.0,113710.0,0.02939]
[1754133176474,7.34950619,113720.0,113710.0,0.02939]
[1754133176689,7.34950619,113720.0,113710.0,0.02624]
[1754133177104,7.34950619,113720.0,113710.0,0.02124]
[1754133177707,7.34950619,113720.0,113710.0,0.02439]
[1754133178534,6.79204375,113720.0,113710.0,0.02439]
[1754133178741,7.34950619,113720.0,113710.0,0.02439]
[1754133178877,2.34950619,113720.0,113710.0,0.02439]
[1754133179099,7.34950619,113720.0,113710.0,0.02439]
[1754133179737,7.34950619,113720.0,113710.0,0.01939]
[1754133180144,7.34951012,113720.0,113710.0,0.01939]
[1754133180520,6.79204768,113720.0,113710.0,0.02144]
[1754133180729,7.34951012,113720.0,113710.0,0.02144]
[1754133180974,7.21515012,113720.0,113710.0,0.02144]
[1754133181186,7.0707389,113720.0,113710.0,0.02144]
[1754133181603,7.34947012,113720.0,113710.0,0.02144]
[1754133181816,7.0707389,113720.0,113710.0,0.02144]
[1754133182035,6.79200768,113720.0,113710.0,0.02144]
[1754133182245,7.07073889,113720.0,113710.0,0.02144]
[1754133182715,7.28229889,113720.0,113710.0,0.02144]
[1754133182985,7.00356767,113720.0,113710.0,0.02144]
[1754133183194,7.28229889,113720.0,113710.0,0.02144]
[1754133185018,2.28229889,113720.0,113710.0,0.02144]
[1754133185230,2.00356812,113720.0,113710.0,0.02144]
[1754133185467,7.28229934,113720.0,113710.0,0.02144]
[1754133186425,7.22937934,113720.0,113710.0,0.02144]
[1754133188264,7.09505934,113720.0,113710.0,0.02144]
[1754133188511,6.54318209,113720.0,113710.0,0.02144]
[1754133188700,6.39595733,113720.0,113710.0,0.02144]
[1754133188898,6.38218801,113720.0,113710.0,0.30017122]
[1754133189105,6.72218801,113720.0,113710.0,0.30017122]
[1754133189350,6.72218801,113720.0,113710.0,0.02144]
[1754133189561,6.78747006,113720.0,113710.0,0.30017122]
[1754133190325,6.65315006,113720.0,113710.0,0.30017122]
[1754133190549,6.78747006,113720.0,113710.0,0.30017122]
[1754133191258,6.70327017,113720.0,113710.0,0.02144]
[1754133191495,6.71703842,113720.0,113710.0,0.29517122]
[1754133192588,6.71983842,113720.0,113710.0,0.29517122]
[1754133197279,6.71983842,113720.0,113710.0,0.01644]
[1754133197488,6.71983842,113720.0,113710.0,0.29517122]
[1754133197700,6.71703842,113720.0,113710.0,0.29237122]
[1754133198555,1.71703842,113720.0,113710.0,0.29237122]
[1754133198777,6.80123831,113720.0,113710.0,0.29237122]
[1754133198982,6.71699842,113720.0,113710.0,0.29237122]
[1754133201582,1.71699842,113720.0,113710.0,0.29237122]
[1754133201783,6.71699842,113720.0,113710.0,0.29237122]
[1754133202571,1.71699842,113720.0,113710.0,0.29237122]
[1754133202774,6.71699842,113720.0,113710.0,0.29237122]
[1754133203785,6.80119831,113720.0,113710.0,0.29237122]
[1754133204933,7.08190953,113720.0,113710.0,0.01364]
[1754133205147,7.10823953,113720.0,113710.0,0.00844]
[1754133205779,7.09999702,113720.0,113710.0,0.00844]
[1754133206046,7.10821422,113720.0,113710.0,0.00844]
[1754133208845,7.10819058,113720.0,113710.0,0.00844]
[1754133209267,7.08186058,113720.0,113710.0,0.00844]
[1754133209921,5.51588602,113710.0,113700.0,0.00054]
[1754133210124,6.30806237,113710.0,113700.0,0.00054]
[1754133210328,6.33439237,113710.0,113700.0,0.00054]
[1754133210534,6.36084537,113710.0,113700.0,0.00054]
[1754133210740,6.80724537,113710.0,113700.0,0.00054]
[1754133211146,6.80724537,113710.0,113700.0,0.00154]
[1754133211352,6.80724537,113710.0,113700.0,0.00254]
[1754133211590,6.52851415,113710.0,113700.0,0.00254]
[1754133211815,6.50219342,113710.0,113700.0,0.00254]
[1754133212026,6.94002696,113710.0,113700.0,0.03232]
[1754133212233,6.94002696,113710.0,113700.0,0.31105122]
[1754133212881,6.94002746,113710.0,113700.0,0.03232]
[1754133213304,6.94002814,113710.0,113700.0,0.03232]
[1754133213517,6.96624706,113710.0,113700.0,0.03232]
[1754133214748,6.96624941,113710.0,113700.0,0.03232]
[1754133216661,7.24498063,113710.0,113700.0,0.03232]
[1754133217397,2.24498063,113710.0,113700.0,0.03232]
[1754133217617,2.27131063,113710.0,113700.0,0.02703]
[1754133217843,7.27131063,113710.0,113700.0,0.02703]
[1754133219170,2.27131063,113710.0,113700.0,0.02703]
[1754133219325,7.27131063,113710.0,113700.0,0.02703]
[1754133219778,7.27131063,113710.0,113700.0,0.00254]
[1754133219995,6.99257941,113710.0,113700.0,0.00254]
[1754133220204,6.96636049,113710.0,113700.0,0.00254]
[1754133220414,6.96636049,113710.0,113700.0,0.02703]
[1754133220851,6.96636767,113710.0,113700.0,0.02703]
[1754133221802,7.24509889,113710.0,113700.0,0.02703]
[1754133222245,7.28799477,113710.0,113700.0,0.02703]
[1754133223676,7.28801579,113710.0,113700.0,0.02703]
[1754133224104,7.28801579,113710.0,113700.0,0.00254]
[1754133224524,7.28801625,113710.0,113700.0,0.00254]
[1754133225815,7.28801625,113710.0,113700.0,0.02703]
[1754133226468,7.34093625,113710.0,113700.0,0.02703]
[1754133226679,7.28801683,113710.0,113700.0,0.02703]
[1754133226826,7.00928561,113710.0,113700.0,0.02703]
[1754133227046,7.28801683,113710.0,113700.0,0.02703]
[1754133227594,7.00928561,113710.0,113700.0,0.02703]
[1754133227795,7.28801683,113710.0,113700.0,0.02703]
[1754133228214,1.98295561,113710.0,113700.0,0.03015]
[1754133228435,1.98295561,113710.0,113700.0,0.30888122]
[1754133228644,1.94005973,113710.0,113700.0,0.31105122]
[1754133228825,6.94005973,113710.0,113700.0,0.31105122]
[1754133229190,6.62791371,113710.0,113700.0,0.31105122]
[1754133229433,6.62791371,113710.0,113700.0,0.58978244]
[1754133229434,6.67799382,113710.0,113700.0,0.58978244]
[1754133229643,6.66153168,113710.0,113700.0,0.58978244]
[1754133229854,6.52725168,113710.0,113700.0,0.58978244]
[1754133230057,5.67517168,113710.0,113700.0,0.58978244]
[1754133230945,5.67517168,113710.0,113700.0,0.59033836]
[1754133231586,5.67517168,113710.0,113700.0,0.31132918]
[1754133232534,5.67518143,113710.0,113700.0,0.31132918]
[1754133233227,5.68894995,113710.0,113700.0,0.31132918]
[1754133233437,5.68894995,113710.0,113700.0,0.59033836]
[1754133233865,0.68894995,113710.0,113700.0,0.59033836]
[1754133234082,5.68894995,113710.0,113700.0,0.59033836]
[1754133234513,5.68894995,113710.0,113700.0,0.31132918]
[1754133234950,5.68894995,113710.0,113700.0,0.59033836]
[1754133235423,5.68894995,113710.0,113700.0,0.03232]
[1754133235640,5.68894995,113710.0,113700.0,0.59033836]
[1754133236085,5.68894995,113710.0,113700.0,0.31132918]
[1754133236300,5.68894995,113710.0,113700.0,0.59033836]
[1754133237164,5.68071656,113710.0,113700.0,0.59033836]
[1754133237378,5.15426356,113710.0,113700.0,0.59033836]
[1754133238146,5.04021752,113710.0,113700.0,0.59033836]
[1754133238362,5.14812852,113710.0,113700.0,0.59033836]
[1754133240033,5.14812852,113710.0,113700.0,0.58833836]
[1754133240189,5.14812852,113710.0,113700.0,0.59033836]
[1754133240397,5.14812852,113710.0,113700.0,0.67753825]
[1754133240618,0.14812852,113710.0,113700.0,0.67753825]
[1754133243501,0.13436,113710.0,113700.0,0.67753825]
[1754133244403,5.13436,113710.0,113700.0,0.03532]
[1754133244603,5.13436,113710.0,113700.0,0.31432918]
[1754133245411,5.13436,113710.0,113700.0,0.59333836]
[1754133246804,5.14820686,113710.0,113700.0,0.59333836]
[1754133247130,5.01376686,113710.0,113700.0,0.59333836]
[1754133247335,5.14820686,113710.0,113700.0,0.59333836]
[1754133252911,0.14820686,113710.0,113700.0,0.59333836]
[1754133253131,5.14820686,113710.0,113700.0,0.59333836]
[1754133253529,5.13444,113710.0,113700.0,0.59333836]
[1754133254277,5.13436,113710.0,113700.0,0.67753825]
[1754133254525,0.13436,113710.0,113700.0,0.67753825]
[1754133254732,0.13436,113710.0,113700.0,0.81185825]
[1754133255149,5.13436,113710.0,113700.0,0.81185825]
[1754133255515,5.13436,113710.0,113700.0,0.67753825]
[1754133256256,5.13436,113710.0,113700.0,0.39852907]
[1754133256458,5.14812667,113710.0,113700.0,0.67753825]
[1754133260454,5.14812667,113710.0,113700.0,0.11951989]
[1754133260599,5.14812667,113710.0,113700.0,0.67753825]
[1754133264443,5.14812667,113710.0,113700.0,0.11951989]
[1754133264654,5.14812667,113710.0,113700.0,0.67753825]
[1754133264883,0.14812667,113710.0,113700.0,0.67753825]
[1754133265093,5.14812667,113710.0,113700.0,0.67753825]
[1754133266385,5.14812667,113710.0,113700.0,0.39852907]
[1754133266791,5.13436,113710.0,113700.0,0.67753825]
[1754133268917,5.13436,113710.0,113700.0,0.81177825]
[1754133269692,5.14812673,113710.0,113700.0,0.81177825]
[1754133271058,5.14812673,113710.0,113700.0,0.81175629]
[1754133275306,5.15007673,113710.0,113700.0,0.81175629]
[1754133278931,5.15007673,113710.0,113700.0,0.25375989]
[1754133279130,5.15007673,113710.0,113700.0,0.81175629]
[1754133280243,5.13631,113710.0,113700.0,0.81175629]
[1754133281456,5.13631,113710.0,113700.0,0.67751629]
[1754133281660,5.13631,113710.0,113700.0,0.81175629]
[1754133282993,5.15007675,113710.0,113700.0,0.81175629]
[1754133283649,5.15007675,113710.0,113700.0,0.25375989]
[1754133284101,5.15007675,113710.0,113700.0,0.81175629]
[1754133284547,5.13631,113710.0,113700.0,0.81175629]
[1754133285400,5.16209,113710.0,113700.0,0.80646629]
[1754133285826,5.13631,113710.0,113700.0,0.80646629]
[1754133286036,5.13631,113710.0,113700.0,0.80944629]
[1754133286872,5.13631,113710.0,113700.0,0.81146629]
[1754133287280,5.15007677,113710.0,113700.0,0.81146629]
[1754133297134,5.13631,113710.0,113700.0,0.81146629]
[1754133299065,5.15007676,113710.0,113700.0,0.81146629]
[1754133301650,5.15007676,113710.0,113700.0,0.25346989]
[1754133301856,5.15007676,113710.0,113700.0,0.81146629]
[1754133306082,5.13631,113710.0,113700.0,0.81146629]
[1754133308794,5.15007674,113710.0,113700.0,0.81146629]
[1754133312892,0.15007674,113710.0,113700.0,0.81146629]
[1754133313297,5.15007674,113710.0,113700.0,0.81146629]
[1754133313515,5.13631,113710.0,113700.0,0.81146629]
[1754133316425,5.15007676,113710.0,113700.0,0.81146629]
[1754133321383,5.09000222,113710.0,113700.0,0.81146629]
[1754133321623,5.14000276,113710.0,113700.0,0.81146629]
[1754133325767,0.01376676,113710.0,113700.0,0.81146629]
[1754133327093,0.5,113720.0,113700.0,0.81146629]
[1754133327094,0.5,113720.0,113700.0,0.97367351]
[1754133327293,0.16234381,113730.0,113710.0,1.08715306]
[1754133327294,0.29654381,113730.0,113710.0,1.08715306]
[1754133327513,0.13640095,113730.0,113720.0,1.0027546]
[1754133327721,0.13640095,113730.0,113720.0,0.80795629]
[1754133329002,0.63640095,113730.0,113720.0,0.80795629]
[1754133329456,0.63640095,113730.0,113720.0,1.08695449]
[1754133329672,0.63640095,113730.0,113720.0,0.80795629]
[1754133330092,0.65016474,113730.0,113720.0,0.80795629]
[1754133330539,0.65016474,113730.0,113720.0,0.81095629]
[1754133334846,0.63640095,113730.0,113720.0,1.10740351]
[1754133335051,0.50047915,113730.0,113720.0,1.10740351]
[1754133335255,0.50047915,113730.0,113720.0,1.13384051]
[1754133336089,0.50047915,113730.0,113720.0,1.15884051]
[1754133337337,0.00047915,113730.0,113720.0,1.15884051]
[1754133339210,0.01424111,113730.0,113720.0,1.15884051]
[1754133339429,0.01424111,113730.0,113720.0,0.18764591]
[1754133339633,0.01424111,113730.0,113720.0,1.15884051]
[1754133342970,0.01424111,113730.0,113720.0,0.50039809]
[1754133343196,0.04016111,113730.0,113720.0,0.77939629]
[1754133343404,0.52639915,113730.0,113720.0,0.77939629]
[1754133343831,0.52639915,113730.0,113720.0,0.64519629]
[1754133344041,0.52639915,113730.0,113720.0,0.77935629]
[1754133344914,0.02639915,113730.0,113720.0,0.50028278]
[1754133345357,0.02639915,113730.0,113720.0,0.36612278]
[1754133345568,0.52639915,113730.0,113720.0,0.50028278]
[1754133347179,5.01839515,113730.0,113720.0,0.003]
[1754133347375,5.01844515,113730.0,113720.0,0.003]
[1754133347800,5.03220964,113730.0,113720.0,0.003]
[1754133350915,5.05909831,113730.0,113720.0,0.003]
[1754133356074,5.05909831,113730.0,113720.0,0.00304]
[1754133361534,5.03317831,113730.0,113720.0,0.31265127]
[1754133361759,5.03317831,113730.0,113720.0,0.03153]
[1754133362043,5.03317831,113730.0,113720.0,0.03372838]
[1754133362292,5.03317831,113730.0,113720.0,0.31265127]
[1754133362524,5.03317831,113730.0,113720.0,0.31045289]
[1754133363411,5.03325831,113730.0,113720.0,0.31045289]
[1754133363638,5.03325831,113730.0,113720.0,0.03153]
[1754133363857,5.03325831,113730.0,113720.0,0.31045289]
[1754133364608,5.16741831,113730.0,113720.0,0.31045289]
[1754133367519,5.16741831,113730.0,113720.0,0.03153]
[1754133367683,5.19314831,113730.0,113720.0,0.31066127]
[1754133367893,5.19314831,113730.0,113720.0,0.30846289]
[1754133368302,5.16741831,113730.0,113720.0,0.31045289]
[1754133370761,5.16733831,113730.0,113720.0,0.31045289]
[1754133372515,0.17534231,113730.0,113720.0,0.31045289]
[1754133372730,0.04118231,113730.0,113720.0,0.31045289]
[1754133373577,0.04118231,113730.0,113720.0,0.39465278]
[1754133374907,0.01424364,113730.0,113720.0,0.39465278]
[1754133375334,0.00047915,113730.0,113720.0,0.39465278]
[1754133378100,0.01424251,113730.0,113720.0,0.39465278]
[1754133381128,0.01424251,113730.0,113720.0,0.4121018]
[1754133384141,0.01424251,113730.0,113720.0,0.69102469]
[1754133384345,0.00047915,113730.0,113720.0,0.69102469]
[1754133385817,0.00047915,113730.0,113720.0,0.4121018]
[1754133386601,0.00047915,113730.0,113720.0,0.71602469]
[1754133388967,0.00047915,113730.0,113720.0,0.71402469]
[1754133389184,0.00047915,113730.0,113720.0,0.71702469]
[1754133389631,0.00047915,113730.0,113720.0,1.05602469]
[1754133390077,0.00047915,113730.0,113720.0,1.05802469]
[1754133390500,0.00047915,113730.0,113720.0,1.05602469]
[1754133390943,0.00047915,113730.0,113720.0,1.05302469]
[1754133391377,0.00047915,113730.0,113720.0,1.06002469]
[1754133391807,0.5,113760.0,113750.0,0.27892289]
[1754133391808,5.301411,113760.0,113750.0,0.27892289]
[1754133392027,0.01376094,113760.0,113750.0,0.49977066]
[1754133392248,0.01376094,113760.0,113750.0,0.52663066]
[1754133392715,0.01384094,113760.0,113750.0,0.52663066]
[1754133393391,0.02341,113760.0,113750.0,0.49773066]
[1754133394904,0.02341,113760.0,113750.0,0.52459066]
[1754133397072,0.02341,113760.0,113750.0,0.49773066]
[1754133397282,0.52341,113760.0,113750.0,0.49773066]
[1754133397964,0.52341,113760.0,113750.0,0.21880777]
[1754133398205,0.02341,113760.0,113750.0,0.49773066]
[1754133398429,0.52341,113760.0,113750.0,0.49773066]
[1754133399266,0.52341,113760.0,113750.0,0.21880777]
[1754133400113,0.52341,113760.0,113750.0,0.50067066]
[1754133400323,0.52341,113760.0,113750.0,0.52459066]
[1754133401699,0.50008,113760.0,113750.0,0.52459066]
[1754133402861,8e-05,113760.0,113750.0,0.52663066]
[1754133403089,0.50008,113760.0,113750.0,0.2697412]
[1754133403309,0.50467884,113760.0,113750.0,0.52663066]
[1754133406442,0.52800884,113760.0,113750.0,0.52459066]
[1754133406895,0.50467884,113760.0,113750.0,0.52459066]
[1754133407114,0.00467884,113760.0,113750.0,0.52459066]
[1754133407922,0.00467884,113760.0,113750.0,0.24566777]
[1754133408139,0.00467884,113760.0,113750.0,0.52459066]
[1754133408979,0.00467884,113760.0,113750.0,0.52663066]
[1754133411951,0.00459884,113760.0,113750.0,0.52663066]
[1754133418470,0.00459884,113760.0,113750.0,0.52639066]
[1754133419804,0.00459884,113760.0,113750.0,0.24746777]
[1754133420023,0.00459884,113760.0,113750.0,0.52639066]
[1754133422441,0.00459884,113760.0,113750.0,0.24746777]
[1754133422653,0.00459884,113760.0,113750.0,0.52639066]
[1754133426648,0.00459884,113760.0,113750.0,0.24746777]
[1754133426906,0.00459884,113760.0,113750.0,0.52639066]
[1754133427773,0.00459884,113760.0,113750.0,0.24746777]
[1754133427984,0.00459884,113760.0,113750.0,0.52639066]
[1754133433971,0.00459884,113760.0,113750.0,0.24746777]
[1754133434189,0.00459884,113760.0,113750.0,0.52639066]
[1754133434627,0.00459884,113760.0,113750.0,0.52647066]
[1754133436881,0.00459884,113760.0,113750.0,0.24754777]
[1754133437091,0.00459884,113760.0,113750.0,0.52647066]
[1754133438811,0.32870074,113770.0,113750.0,0.52647066]
[1754133439015,4.826971,113770.0,113760.0,0.11078989]
[1754133439209,4.827051,113770.0,113760.0,0.11078989]
[1754133440620,4.801491,113770.0,113760.0,0.11078989]
[1754133440791,4.804491,113770.0,113760.0,0.11078989]
[1754133441002,4.81825079,113770.0,113760.0,0.11078989]
[1754133441401,4.81725079,113770.0,113760.0,0.11078989]
[1754133441615,4.81825079,113770.0,113760.0,0.11078989]
[1754133442066,4.84381079,113770.0,113760.0,0.11078989]
[1754133443499,4.830051,113770.0,113760.0,0.11078989]
[1754133444989,4.830051,113770.0,113760.0,0.08734989]
[1754133446005,4.830051,113770.0,113760.0,0.11314989]
[1754133446835,4.84381081,113770.0,113760.0,0.13518332]
[1754133447044,4.84381081,113770.0,113760.0,0.08734989]
[1754133449275,4.801411,113760.0,113750.0,0.02878788]
[1754133449479,4.801491,113760.0,113750.0,0.24722777]
[1754133450104,4.801491,113760.0,113750.0,0.24918777]
[1754133451973,4.801411,113760.0,113750.0,0.24918777]
[1754133454702,4.801411,113760.0,113750.0,0.52811066]
[1754133458332,4.801411,113760.0,113750.0,0.24918777]
[1754133458563,4.801411,113760.0,113750.0,0.52811066]
[1754133459173,0.01375983,113760.0,113750.0,0.52811066]
[1754133466821,0.5,113770.0,113750.0,0.80703355]